bitfinex/quotes_BTCUSD_20260308
["timestamp","ask_amount","ask_price","bid_price","bid_amount"]
[1772997461931,0.00152,67086.0,67077.0,0.15591719]
[1772997462755,0.00152,67086.0,67076.0,0.07454231]
[1772997462954,0.00152,67085.0,67076.0,0.07454231]
[1772997463155,0.00022001,67084.0,67076.0,0.07454231]
[1772997463562,0.00152,67083.0,67076.0,0.07454231]
[1772997469451,0.00022001,67084.0,67076.0,0.07454231]
[1772997469574,0.00152,67082.0,67076.0,0.07454231]
[1772997471337,0.00152,67082.0,67075.0,0.07454231]
[1772997471646,0.00022001,67083.0,67077.0,0.061648]
[1772997471846,0.00152,67082.0,67077.0,0.061648]
[1772997471999,0.00152,67081.0,67077.0,0.061648]
[1772997472192,0.00152,67081.0,67078.0,0.061648]
[1772997472826,0.00152,67081.0,67075.0,0.07454231]
[1772997473227,0.00152,67080.0,67076.0,0.061648]
[1772997473433,0.00022001,67084.0,67079.0,0.07453897]
[1772997473638,0.00152,67083.0,67079.0,0.13618697]
[1772997474242,0.00023,67088.0,67079.0,0.13618697]
[1772997474577,0.00152,67087.0,67079.0,0.29210416]
[1772997474715,0.00022001,67091.0,67079.0,0.29210416]
[1772997474716,0.00022001,67091.0,67081.0,0.061648]
[1772997474912,0.00152,67089.0,67081.0,0.061648]
[1772997475111,0.00152,67089.0,67079.0,0.23045616]
[1772997475529,0.00152,67089.0,67079.0,0.07453897]
[1772997479188,0.00152,67089.0,67078.0,0.0745399]
[1772997479740,0.00152,67088.0,67078.0,0.0745399]
[1772997480388,0.0669873,67086.0,67078.0,0.07453897]
[1772997480607,0.0669873,67084.0,67072.0,0.07454675]
[1772997481422,0.00152,67083.0,67072.0,0.07454675]
[1772997481593,0.00152,67083.0,67073.0,0.15591719]
[1772997481801,0.00152,67083.0,67074.0,0.061648]
[1772997482229,0.07474789,67089.0,67074.0,0.21756519]
[1772997482427,0.0685073,67088.0,67074.0,0.21756519]
[1772997482634,0.07604915,67088.0,67075.0,0.07454342]
[1772997482855,0.14303645,67088.0,67075.0,0.07454342]
[1772997483359,0.00152,67087.0,67075.0,0.13619142]
[1772997483524,0.00152,67087.0,67076.0,0.061648]
[1772997485339,0.06866339,67086.0,67077.0,0.07454119]
[1772997485719,0.06714339,67084.0,67077.0,0.07454119]
[1772997487683,0.06714339,67084.0,67075.0,0.07474342]
[1772997487684,0.06714339,67084.0,67075.0,0.0002]
[1772997488045,0.00152,67086.0,67075.0,0.0002]
[1772997489930,0.00152,67085.0,67075.0,0.0002]
[1772997490909,0.06510651,67084.0,67075.0,0.0002]
[1772997491134,0.00152,67083.0,67075.0,0.0002]
[1772997491759,0.00152,67083.0,67073.0,0.1403032]
[1772997494186,0.00152,67082.0,67073.0,0.1403032]
[1772997494668,0.00152,67086.0,67073.0,0.07431222]
[1772997494845,0.00022001,67095.0,67082.0,0.15250944]
[1772997495029,0.00152,67094.0,67084.0,0.07453342]
[1772997495238,0.00152,67094.0,67084.0,0.1405244]
[1772997495447,0.00152,67094.0,67084.0,0.07453342]
[1772997495647,0.00152,67094.0,67082.0,0.07453342]
[1772997495648,0.06532652,67086.0,67082.0,0.0712734]
[1772997496191,0.00022001,67086.0,67082.0,0.0712734]
[1772997497059,0.00022001,67086.0,67080.0,5e-05]
[1772997499717,0.00152,67085.0,67080.0,5e-05]
[1772997500551,0.00152,67085.0,67073.0,0.07474561]
[1772997500552,0.15706772,67083.0,67073.0,0.07474561]
[1772997500756,0.00152,67082.0,67075.0,0.15250944]
[1772997501046,0.00152,67081.0,67078.0,0.06599098]
[1772997501241,0.00152,67080.0,67079.0,0.14052995]
[1772997501396,0.04137542,67089.0,67079.0,0.14052995]
[1772997501604,0.00152,67088.0,67079.0,0.14052995]
[1772997502169,0.00152,67087.0,67079.0,0.14052995]
[1772997502327,0.00152,67087.0,67079.0,0.07453897]
[1772997503075,0.04137542,67089.0,67079.0,0.07453897]
[1772997503296,0.04137542,67089.0,67077.0,0.07454017]
[1772997503297,0.00152,67086.0,67077.0,0.07454017]
[1772997503684,0.06662651,67085.0,67077.0,0.07454017]
[1772997503888,0.00152,67085.0,67077.0,0.07454017]
[1772997504172,0.07457733,67090.0,67077.0,0.07454017]
[1772997504375,0.15858772,67089.0,67077.0,0.07454017]
[1772997504576,0.06510651,67088.0,67077.0,0.07454017]
[1772997505167,0.06510651,67088.0,67075.0,0.14053329]
[1772997505342,0.07604881,67089.0,67076.0,0.06599098]
[1772997505753,0.14115532,67089.0,67076.0,0.06599098]
[1772997505962,0.07604881,67089.0,67076.0,0.06599098]
[1772997506279,0.06510651,67088.0,67074.0,0.07454231]
[1772997507272,0.00152,67087.0,67074.0,0.07454231]
[1772997507449,0.00152,67087.0,67075.0,0.06599098]
[1772997507791,0.00152,67086.0,67075.0,0.06599098]
[1772997509252,0.07605214,67086.0,67076.0,0.07454231]
[1772997510409,0.00152,67086.0,67076.0,0.07454231]
[1772997510839,0.07453206,67086.0,67076.0,0.07454231]
[1772997511073,0.00152,67085.0,67076.0,0.07454231]
[1772997513211,0.00044186,67085.0,67076.0,0.07454231]
[1772997515481,0.00044186,67085.0,67077.0,0.06599098]
[1772997516108,0.00044186,67085.0,67076.0,0.07454231]
[1772997517300,0.00029003,67085.0,67075.0,0.07474231]
[1772997517940,0.00029003,67085.0,67076.0,0.06599098]
[1772997518709,0.00029003,67085.0,67076.0,0.06619098]
[1772997519196,0.00152,67084.0,67076.0,0.06619098]
[1772997520099,0.00152,67084.0,67077.0,0.07454119]
[1772997520100,0.00136819,67084.0,67077.0,0.07454119]
[1772997520304,0.13861329,67089.0,67077.0,0.07454119]
[1772997520542,0.00152,67083.0,67077.0,0.07454119]
[1772997522115,0.13861329,67089.0,67077.0,0.07454119]
[1772997522353,0.00022001,67089.0,67079.0,0.15131063]
[1772997522484,0.00022001,67089.0,67081.0,0.06538789]
[1772997522681,0.00152,67088.0,67081.0,0.06538789]
[1772997522882,0.00022001,67089.0,67081.0,0.06538789]
[1772997522883,0.00152,67087.0,67081.0,0.06538789]
[1772997523122,0.00152,67087.0,67077.0,0.07454119]
[1772997523368,0.00022001,67089.0,67077.0,0.13992908]
[1772997523515,0.00152,67086.0,67077.0,0.07454119]
[1772997523752,0.00136817,67086.0,67077.0,0.07454119]
[1772997523914,0.15112582,67084.0,67076.0,0.07474221]
[1772997524112,0.06386521,67083.0,67076.0,0.07474221]
[1772997524521,0.06386521,67083.0,67076.0,0.0002]
[1772997525355,0.07590152,67086.0,67076.0,0.0002]
[1772997525356,0.00136817,67086.0,67076.0,0.0002]
[1772997526107,0.21499103,67087.0,67076.0,0.0002]
[1772997526285,0.00152,67085.0,67076.0,0.0002]
[1772997526742,0.00152,67084.0,67076.0,0.0002]
[1772997527460,0.00136821,67084.0,67076.0,0.0002]
[1772997528326,0.00022001,67085.0,67076.0,0.0002]
[1772997528529,5e-05,67090.0,67076.0,0.0002]
[1772997528530,0.00572,67106.0,67078.0,0.15131063]
[1772997528762,0.00575681,67106.0,67083.0,0.15131063]
[1772997528977,0.0003315,67118.0,67087.0,0.15131063]
[1772997528978,0.002,67107.0,67087.0,0.15131063]
[1772997529191,0.14896676,67114.0,67090.0,0.15131063]
[1772997529402,0.0003315,67118.0,67088.0,0.00152]
[1772997529403,0.0003315,67118.0,67094.0,0.15131063]
[1772997529621,0.1299749,67121.0,67100.0,0.06538789]
[1772997529846,0.15112582,67144.0,67095.0,0.00152]
[1772997529847,0.22590554,67158.0,67139.0,0.15131063]
[1772997530049,0.22590554,67158.0,67137.0,0.08855977]
[1772997530050,0.0024554,67158.0,67137.0,0.08855977]
[1772997530266,0.0024554,67158.0,67137.0,0.01842276]
[1772997530505,0.00048,67158.0,67137.0,0.01842276]
[1772997530727,0.00023,67184.0,67138.0,0.07447347]
[1772997530728,0.00152,67163.0,67138.0,0.07447347]
[1772997530945,0.0002949,67178.0,67138.0,0.07447347]
[1772997530946,0.00152,67162.0,67138.0,0.07447347]
[1772997531177,0.00152,67165.0,67139.0,0.21669852]
[1772997531410,0.0002949,67178.0,67142.0,0.06538789]
[1772997531628,0.21499103,67171.0,67142.0,0.00039685]
[1772997531867,0.06534521,67170.0,67142.0,0.00039685]
[1772997532106,0.00148,67169.0,67142.0,0.00039685]
[1772997532325,0.21499103,67169.0,67142.0,0.00039685]
[1772997532535,0.15112582,67168.0,67143.0,0.07446792]
[1772997532760,0.19425498,67169.0,67142.0,0.00039685]
[1772997532761,0.15112582,67164.0,67142.0,0.00039685]
[1772997532983,0.06386521,67161.0,67137.0,0.07447347]
[1772997533238,0.06386521,67157.0,67142.0,0.001]
[1772997533460,0.15112582,67154.0,67142.0,0.001]
[1772997533671,0.00039604,67161.0,67137.0,0.07447347]
[1772997533875,0.00039604,67161.0,67147.0,0.06538789]
[1772997534323,0.00024426,67161.0,67143.0,0.06538789]
[1772997534503,0.00024426,67161.0,67144.0,0.15131063]
[1772997534758,0.00024426,67161.0,67146.0,0.15131063]
[1772997534973,0.00024426,67161.0,67147.0,0.06538789]
[1772997535412,0.00024426,67161.0,67147.0,0.15283063]
[1772997535630,0.00024426,67161.0,67148.0,0.06538789]
[1772997535856,0.00024426,67161.0,67149.0,0.06538789]
[1772997536056,0.00024426,67161.0,67147.0,0.00152]
[1772997536584,0.21499103,67160.0,67143.0,0.00152]
[1772997536869,0.21499103,67160.0,67141.0,0.06538789]
[1772997536870,0.21499103,67183.0,67148.0,0.06538789]
[1772997537089,0.06386521,67182.0,67153.0,0.06538789]
[1772997537293,0.00045001,67184.0,67148.0,0.00039604]
[1772997537294,0.15112582,67180.0,67158.0,0.06538789]
[1772997537466,0.15112582,67178.0,67159.0,0.06538789]
[1772997537672,0.06386521,67176.0,67148.0,0.00039604]
[1772997537869,0.15112582,67173.0,67149.0,0.06538789]
[1772997538085,0.06386521,67170.0,67149.0,0.06690789]
[1772997538379,0.06386521,67167.0,67150.0,0.00152]
[1772997538668,0.00148,67166.0,67151.0,0.07445905]
[1772997539246,0.07442358,67183.0,67151.0,0.07445905]
[1772997539449,0.00148,67182.0,67151.0,0.07445905]
[1772997539681,0.06386521,67179.0,67153.0,0.06538789]
[1772997539860,0.15112582,67176.0,67153.0,0.06538789]
[1772997540065,0.00148,67175.0,67153.0,0.15131063]
[1772997540267,0.07442358,67183.0,67153.0,0.21669852]
[1772997540268,0.00148,67174.0,67153.0,0.21669852]
[1772997540592,0.06386521,67168.0,67151.0,0.07445905]
[1772997540796,0.06386521,67166.0,67153.0,0.001]
[1772997540997,0.21499103,67164.0,67153.0,0.001]
[1772997541148,0.00148,67163.0,67153.0,0.001]
[1772997541954,0.00148,67163.0,67151.0,0.07445905]
[1772997542176,0.00148,67163.0,67153.0,0.001]
[1772997542394,0.0744189,67188.0,67151.0,0.07445905]
[1772997542594,0.15260582,67183.0,67156.0,0.15131063]
[1772997542795,0.06386521,67191.0,67160.0,0.16418445]
[1772997543001,0.07440645,67199.0,67163.0,0.06538789]
[1772997543248,0.07533008,67202.0,67170.0,0.16418445]
[1772997543249,0.0009271,67202.0,67170.0,0.16418445]
[1772997543466,0.0009271,67202.0,67172.0,0.448049]
[1772997543467,1e-08,67202.0,67172.0,0.448049]
[1772997543636,1e-08,67202.0,67177.0,0.49292]
[1772997543833,1e-08,67202.0,67165.0,0.18008159]
[1772997543834,0.00022001,67196.0,67181.0,0.06538789]
[1772997544041,0.15003144,67195.0,67173.0,0.16418445]
[1772997544239,0.15003144,67195.0,67174.0,0.06538789]
[1772997544240,0.06386521,67194.0,67174.0,0.06538789]
[1772997544448,0.15003144,67191.0,67170.0,5e-05]
[1772997544644,0.15003144,67186.0,67170.0,5e-05]
[1772997544850,0.06386521,67183.0,67170.0,5e-05]
[1772997545018,0.15095823,67182.0,67170.0,5e-05]
[1772997545226,0.00148,67181.0,67170.0,5e-05]
[1772997545425,0.00148,67181.0,67170.0,0.00105]
[1772997545623,0.15095823,67178.0,67162.0,0.07444575]
[1772997545835,0.00148,67177.0,67162.0,0.07444575]
[1772997546102,0.07441694,67189.0,67162.0,0.07444575]
[1772997546103,0.15095823,67185.0,67165.0,0.06682814]
[1772997546374,0.07441694,67189.0,67166.0,0.06682814]
[1772997546375,0.14238122,67189.0,67166.0,0.06682814]
[1772997546527,0.00148,67188.0,67170.0,0.14126613]
[1772997546732,0.15095823,67187.0,67171.0,0.00152]
[1772997546921,0.00148,67186.0,67171.0,0.06834814]
[1772997547121,0.00148,67186.0,67170.0,0.07443799]
[1772997547122,0.06796428,67184.0,67167.0,0.07444116]
[1772997547342,0.15095823,67181.0,67167.0,0.07444116]
[1772997547786,5e-05,67190.0,67167.0,0.07444116]
[1772997547787,0.00148,67180.0,67167.0,0.07444116]
[1772997547996,0.00148,67179.0,67167.0,0.07444116]
[1772997548221,0.07441251,67193.0,67167.0,0.07444116]
[1772997548222,0.07437897,67224.0,67185.0,0.06682814]
[1772997548408,0.07438792,67216.0,67188.0,0.16200723]
[1772997548621,0.15095823,67209.0,67190.0,0.16200723]
[1772997548819,0.07439538,67209.0,67189.0,0.07441694]
[1772997549045,0.15095823,67206.0,67190.0,0.00152]
[1772997549200,0.15095823,67206.0,67191.0,0.00152]
[1772997549614,0.15095823,67206.0,67189.0,0.07441694]
[1772997549615,0.15243823,67206.0,67189.0,0.07441694]
[1772997549960,0.15243823,67206.0,67191.0,0.00152]
[1772997550162,0.01,67210.0,67192.0,0.16200723]
[1772997550314,0.00022001,67202.0,67192.0,0.16200723]
[1772997550533,0.00022001,67202.0,67191.0,0.07593373]
[1772997550911,0.00022001,67202.0,67192.0,0.00152]
[1772997551532,0.00022001,67209.0,67192.0,0.00152]
[1772997551730,0.00022001,67209.0,67193.0,0.23131465]
[1772997551935,0.15095823,67207.0,67192.0,0.07441362]
[1772997552134,0.15095823,67207.0,67193.0,0.00152]
[1772997552331,0.14543243,67209.0,67193.0,0.00152]
[1772997552782,0.15095823,67208.0,67192.0,0.07593362]
[1772997553086,0.07461591,67209.0,67192.0,0.07441362]
[1772997553297,0.15095823,67207.0,67192.0,0.07441362]
[1772997553470,0.07461591,67209.0,67192.0,0.07441362]
[1772997553651,0.22557414,67209.0,67192.0,0.07593362]
[1772997553852,0.15095823,67205.0,67192.0,0.07593362]
[1772997554052,0.1508064,67205.0,67192.0,0.07593362]
[1772997554404,0.15095823,67207.0,67192.0,0.07441362]
[1772997554724,0.15095823,67207.0,67191.0,0.07441362]
[1772997554855,0.22535542,67207.0,67191.0,0.07441362]
[1772997556312,0.07439719,67207.0,67191.0,0.07441362]
[1772997556600,0.07591701,67208.0,67191.0,0.23642085]
[1772997557022,0.07591701,67208.0,67191.0,0.07441362]
[1772997557208,0.22687524,67208.0,67191.0,0.07441362]
[1772997557619,0.22177475,67207.0,67191.0,0.07441362]
[1772997558598,0.15095823,67206.0,67191.0,0.07441362]
[1772997558771,0.22177475,67206.0,67191.0,0.07441362]
[1772997558977,0.07439857,67206.0,67190.0,0.07446362]
[1772997559198,0.00022001,67209.0,67193.0,0.06778742]
[1772997559357,0.00556,67214.0,67190.0,0.07446362]
[1772997559560,0.15095823,67211.0,67190.0,0.07446362]
[1772997559763,0.07081652,67208.0,67190.0,0.07446362]
[1772997559964,0.00152,67210.0,67184.0,0.30444641]
[1772997560315,0.17884393,67210.0,67185.0,0.07442048]
[1772997560461,0.17884393,67210.0,67184.0,0.07465176]
[1772997560462,0.15095823,67209.0,67184.0,0.00023]
[1772997560664,0.07081652,67206.0,67182.0,0.00152]
[1772997560863,0.15095823,67203.0,67182.0,0.00152]
[1772997561063,0.15095823,67203.0,67181.0,0.0744258]
[1772997561064,0.15095823,67198.0,67181.0,0.0744258]
[1772997561385,0.15095823,67194.0,67181.0,0.0744258]
[1772997561588,0.07081652,67191.0,67172.0,0.07443577]
[1772997561788,0.15095823,67188.0,67173.0,0.00152]
[1772997562042,0.00152,67187.0,67173.0,0.00152]
[1772997562230,0.00152,67187.0,67172.0,0.07443577]
[1772997562442,0.00152,67187.0,67173.0,0.00152]
[1772997562655,0.07081652,67186.0,67173.0,0.00152]
[1772997562881,0.07066461,67186.0,67173.0,0.00152]
[1772997563007,0.1452042,67186.0,67174.0,0.07443356]
[1772997563420,0.07453929,67186.0,67173.0,0.00152]
[1772997563715,0.07453929,67186.0,67160.0,0.08023823]
[1772997563716,0.07081652,67184.0,67160.0,0.08023823]
[1772997563924,0.07081652,67180.0,67160.0,0.08023823]
[1772997564153,0.15095823,67177.0,67156.0,0.07512253]
[1772997564351,0.15095823,67173.0,67156.0,0.07512253]
[1772997564598,0.07081652,67170.0,67156.0,0.07497253]
[1772997564761,0.22329475,67169.0,67156.0,0.07497253]
[1772997564975,0.00152,67168.0,67161.0,0.07444796]
[1772997565189,0.00152,67167.0,67161.0,0.07444796]
[1772997565559,0.00152,67167.0,67159.0,0.0744491]
[1772997565936,0.00136805,67167.0,67161.0,0.25]
[1772997566188,0.07081652,67169.0,67161.0,0.25]
[1772997566360,0.00136803,67167.0,67161.0,0.25]
[1772997566564,0.07442932,67178.0,67161.0,0.25]
[1772997566767,0.15095823,67176.0,67161.0,0.25]
[1772997566944,0.07443245,67175.0,67162.0,0.07444685]
[1772997567149,0.22177475,67174.0,67162.0,0.07444685]
[1772997567349,0.07443005,67178.0,67162.0,0.07444685]
[1772997567984,0.00152,67177.0,67162.0,0.07444685]
[1772997568323,0.07443005,67178.0,67162.0,0.07444685]
[1772997568527,0.00152,67176.0,67162.0,0.07444685]
[1772997568704,0.00152,67175.0,67162.0,0.07444685]
[1772997568928,0.07443005,67178.0,67162.0,0.07444685]
[1772997569222,0.29772841,67174.0,67162.0,0.07444685]
[1772997569420,0.07443466,67173.0,67162.0,0.07444685]
[1772997569602,0.07081652,67174.0,67162.0,0.07444685]
[1772997569802,0.00152,67173.0,67162.0,0.07444685]
[1772997570184,0.00152,67172.0,67162.0,0.07444685]
[1772997570823,0.07440647,67199.0,67162.0,0.07444685]
[1772997571033,0.00152,67192.0,67164.0,0.16200723]
[1772997571232,0.00152,67192.0,67168.0,0.06778742]
[1772997571435,0.00152,67192.0,67171.0,0.16200723]
[1772997571636,0.00152,67192.0,67174.0,0.06778742]
[1772997571843,0.00152,67192.0,67177.0,0.16200723]
[1772997572049,0.00152,67192.0,67178.0,0.23131465]
[1772997572368,0.07593375,67192.0,67178.0,0.00152]
[1772997572559,0.00152,67192.0,67178.0,0.00152]
[1772997573121,0.00152,67192.0,67179.0,0.07442802]
[1772997573525,0.23307627,67191.0,67179.0,0.07442802]
[1772997573756,0.07441323,67193.0,67179.0,0.07442802]
[1772997574258,0.07441053,67195.0,67179.0,0.23451278]
[1772997574259,0.00152,67192.0,67179.0,0.23451278]
[1772997574455,0.07593391,67192.0,67179.0,0.07442802]
[1772997574889,0.14675043,67192.0,67179.0,0.07442802]
[1772997575108,0.14675043,67192.0,67179.0,0.07462802]
[1772997576339,0.00152,67189.0,67179.0,0.07462802]
[1772997576764,0.00157,67190.0,67179.0,0.07462802]
[1772997577860,0.00157,67190.0,67177.0,0.0744301]
[1772997578053,0.07238652,67190.0,67177.0,0.0744301]
[1772997579430,0.00157,67190.0,67177.0,0.16008476]
[1772997579559,0.00157,67190.0,67177.0,0.2297334]
[1772997580182,0.07598626,67190.0,67175.0,0.07443226]
[1772997580381,0.07598626,67190.0,67176.0,0.16008476]
[1772997580589,0.07598626,67190.0,67177.0,0.2297334]
[1772997580808,0.16225975,67188.0,67172.0,0.0002]
[1772997581033,0.07137547,67185.0,67171.0,0.07443686]
[1772997581226,0.07442469,67182.0,67165.0,0.07464273]
[1772997581586,0.16225975,67179.0,67165.0,0.07464273]
[1772997581963,0.16225975,67177.0,67175.0,0.25]
[1772997582096,0.16225975,67176.0,67165.0,0.07464273]
[1772997582296,0.07137547,67175.0,67165.0,0.07464273]
[1772997582503,0.00152,67178.0,67140.0,0.0004987]
[1772997582504,0.07137547,67173.0,67140.0,0.0004987]
[1772997582725,0.16225975,67167.0,67141.0,0.0744697]
[1772997582923,0.07137547,67164.0,67141.0,0.0744697]
[1772997583123,0.16225975,67161.0,67140.0,0.07496937]
[1772997583303,0.16225975,67156.0,67140.0,0.07496937]
[1772997583519,0.16225975,67152.0,67140.0,0.0004987]
[1772997583725,0.07137547,67150.0,67140.0,0.07496972]
[1772997583921,0.16377975,67149.0,67141.0,0.001]
[1772997584180,0.16377975,67149.0,67140.0,0.07496959]
[1772997584483,0.16377975,67149.0,67140.0,0.0004987]
[1772997584484,0.23515522,67149.0,67140.0,0.0004987]
[1772997584618,0.07137547,67148.0,67140.0,0.0004987]
[1772997584823,0.07137547,67148.0,67140.0,0.07496969]
[1772997585060,0.07445129,67158.0,67140.0,0.07496969]
[1772997585358,0.00152,67153.0,67140.0,0.07496969]
[1772997587362,0.07445794,67152.0,67140.0,0.07496969]
[1772997587509,0.00152,67153.0,67140.0,0.07496969]
[1772997588125,0.07597728,67153.0,67140.0,0.07496969]
[1772997588608,0.07445728,67153.0,67140.0,0.07496969]
[1772997588796,0.00152,67152.0,67140.0,0.07496953]
[1772997589003,0.07137547,67151.0,67137.0,0.07447399]
[1772997589149,0.07446127,67149.0,67137.0,0.07447399]
[1772997589348,0.23363522,67148.0,67137.0,0.07447399]
[1772997589572,0.07446127,67149.0,67137.0,0.07447399]
[1772997590636,0.16225975,67148.0,67137.0,0.07447399]
[1772997590782,0.16225975,67147.0,67137.0,0.07447399]
[1772997590984,0.16225975,67147.0,67136.0,0.00023]
[1772997590985,0.07289547,67146.0,67136.0,0.00023]
[1772997591312,0.07137547,67144.0,67140.0,0.0002]
[1772997591943,0.00152,67143.0,67134.0,0.07447738]
[1772997592113,0.07329126,67143.0,67133.0,0.08023838]
[1772997593915,0.07446903,67142.0,67133.0,0.08023838]
[1772997594499,0.00152,67143.0,67137.0,0.06964864]
[1772997594725,0.00152,67143.0,67133.0,0.08023838]
[1772997594726,0.07451067,67150.0,67133.0,0.08023838]
[1772997594888,0.07451067,67150.0,67133.0,0.08063417]
[1772997594889,0.00152,67149.0,67133.0,0.08063417]
[1772997595283,0.07451067,67150.0,67133.0,0.08063417]
[1772997595507,0.00152,67149.0,67133.0,0.15028281]
[1772997595914,0.07446238,67148.0,67133.0,0.15028281]
[1772997596334,0.14583785,67148.0,67133.0,0.15028281]
[1772997596550,0.00152,67147.0,67133.0,0.15028281]
[1772997597118,0.07137547,67146.0,67133.0,0.08063417]
[1772997598017,0.0744657,67145.0,67133.0,0.08063417]
[1772997598422,0.14584057,67146.0,67133.0,0.08063417]
[1772997598672,0.14584018,67146.0,67133.0,0.08063417]
[1772997599419,0.07137547,67145.0,67133.0,0.08063447]
[1772997600040,0.14584225,67145.0,67133.0,0.08063447]
[1772997600237,0.23363522,67144.0,67130.0,5e-05]
[1772997600444,0.17744875,67143.0,67119.0,0.0002]
[1772997600700,0.17744875,67130.0,67113.0,0.1466649]
[1772997600852,0.10687604,67139.0,67113.0,0.22116607]
[1772997600853,0.07137547,67127.0,67113.0,0.22116607]
[1772997601035,0.07137547,67125.0,67113.0,0.1466649]
[1772997601253,0.07137547,67125.0,67110.0,0.0090569]
[1772997601254,0.07137547,67121.0,67110.0,0.0090569]
[1772997601461,0.16225975,67118.0,67107.0,0.00043]
[1772997601696,0.00152,67117.0,67110.0,5e-05]
[1772997601859,0.00152,67117.0,67106.0,0.00571]
[1772997601860,0.07137547,67116.0,67106.0,0.00571]
[1772997602174,0.07137547,67116.0,67100.0,5e-05]
[1772997602175,0.07450041,67114.0,67100.0,5e-05]
[1772997602418,0.07137547,67113.0,67100.0,0.00016895]
[1772997602767,0.07450041,67114.0,67100.0,0.00016895]
[1772997603171,0.16842831,67113.0,67100.0,0.00016895]
[1772997603376,0.14587588,67114.0,67100.0,0.00016895]
[1772997603689,0.07137547,67112.0,67100.0,0.00016895]
[1772997603906,0.07137547,67111.0,67100.0,0.00016895]
[1772997604109,0.07450676,67108.0,67097.0,0.07495077]
[1772997604311,0.07289547,67107.0,67097.0,0.00050901]
[1772997604678,0.00152,67107.0,67097.0,0.07502793]
[1772997604879,0.07450424,67111.0,67097.0,0.07502793]
[1772997605081,0.00152,67106.0,67097.0,0.00050901]
[1772997605276,0.00152,67106.0,67097.0,0.0750277]
[1772997605483,0.00152,67105.0,67097.0,0.0750277]
[1772997607953,0.00152,67104.0,67097.0,0.0750277]
[1772997608732,0.00152,67104.0,67097.0,0.00050901]
[1772997608933,0.00152,67104.0,67097.0,0.07502696]
[1772997610343,0.00152,67104.0,67097.0,0.07522696]
[1772997616786,5e-05,67110.0,67098.0,0.16146957]
[1772997616986,0.07453306,67130.0,67099.0,0.16146957]
[1772997616987,0.00152,67109.0,67099.0,0.16146957]
[1772997617190,0.00152,67111.0,67102.0,0.07004711]
[1772997617364,0.00152,67111.0,67104.0,0.16146957]
[1772997617570,0.074497,67117.0,67105.0,0.07004711]
[1772997617766,0.00152,67116.0,67105.0,0.07004711]
[1772997617999,0.00152,67116.0,67104.0,0.16146957]
[1772997618000,0.07066285,67114.0,67097.0,0.07522708]
[1772997618311,0.07066285,67112.0,67097.0,0.07522708]
[1772997618500,0.07066285,67112.0,67097.0,0.14527419]
[1772997619017,0.07450343,67111.0,67097.0,0.07522708]
[1772997619347,0.07066285,67112.0,67098.0,0.07004711]
[1772997619618,0.00152,67111.0,67099.0,0.07004711]
[1772997620483,0.07066285,67110.0,67097.0,0.07522708]
[1772997621520,0.07450519,67110.0,67097.0,0.07522778]
[1772997621725,0.07062285,67109.0,67097.0,0.07522778]
[1772997623147,0.07062285,67109.0,67097.0,0.00070901]
[1772997623327,0.07066285,67107.0,67097.0,0.07522772]
[1772997623523,0.07450898,67106.0,67097.0,0.07522772]
[1772997623726,0.07066285,67104.0,67095.0,0.07451897]
[1772997623932,0.07078147,67104.0,67090.0,0.00025]
[1772997624135,0.07066285,67102.0,67090.0,0.00025]
[1772997624333,0.07066285,67102.0,67090.0,0.07477671]
[1772997624537,0.07066285,67102.0,67090.0,0.00025]
[1772997624738,0.07066285,67102.0,67090.0,0.07477632]
[1772997625159,0.07066285,67102.0,67090.0,0.07477666]
[1772997625784,0.07451453,67101.0,67090.0,0.00025]
[1772997625961,0.07066285,67100.0,67090.0,0.00025]
[1772997626161,0.00152,67099.0,67090.0,0.00025]
[1772997626344,0.00152,67099.0,67090.0,0.07477601]
[1772997627188,0.00152,67099.0,67090.0,0.00025]
[1772997627758,0.07451786,67098.0,67090.0,0.00025]
[1772997628624,0.07463003,67104.0,67090.0,0.0747764]
[1772997628837,0.00152,67103.0,67090.0,0.0747764]
[1772997629023,0.00152,67102.0,67090.0,0.0747764]
[1772997629251,0.00152,67102.0,67091.0,0.23151668]
[1772997629388,0.00152,67102.0,67092.0,0.07004711]
[1772997629583,0.00011862,67104.0,67094.0,0.07004711]
[1772997629787,0.07615002,67104.0,67095.0,0.0745212]
[1772997630134,0.00163862,67104.0,67095.0,0.14456831]
[1772997630727,0.00152,67103.0,67095.0,0.14456831]
[1772997631028,0.00152,67103.0,67097.0,0.07004711]
[1772997631229,0.00011862,67104.0,67097.0,0.07004711]
[1772997631435,0.00148,67104.0,67099.0,0.07004711]
[1772997631631,0.00148,67104.0,67095.0,0.0745212]
[1772997631831,0.07472253,67112.0,67100.0,0.16146957]
[1772997631990,0.00152,67111.0,67100.0,0.23151668]
[1772997632348,0.00152,67110.0,67101.0,0.07004711]
[1772997632834,0.00152,67109.0,67101.0,0.07004711]
[1772997633031,0.00152,67109.0,67099.0,0.07451675]
[1772997635195,0.07450676,67108.0,67096.0,0.14456655]
[1772997635382,0.07450676,67108.0,67096.0,0.14468517]
[1772997635736,0.00152,67109.0,67097.0,0.17054996]
[1772997635935,0.07602568,67109.0,67099.0,0.07004711]
[1772997636137,0.07602568,67109.0,67100.0,0.17054996]
[1772997636773,0.00022001,67112.0,67098.0,0.17054996]
[1772997636976,0.00152,67112.0,67100.0,0.17054996]
[1772997637176,0.00152,67112.0,67102.0,0.07451342]
[1772997637375,0.00152,67112.0,67104.0,0.07004711]
[1772997637738,0.00152,67112.0,67106.0,0.07004711]
[1772997637947,0.00152,67112.0,67102.0,0.07451342]
[1772997638120,0.00152,67112.0,67102.0,0.14456053]
[1772997638526,0.00152,67112.0,67103.0,0.17054996]
[1772997638927,0.00152,67112.0,67102.0,0.14456053]
[1772997639139,0.00152,67112.0,67102.0,0.14503079]
[1772997640780,0.00152,67111.0,67102.0,0.07451342]
[1772997641019,0.00152,67111.0,67104.0,0.07051737]
[1772997641235,0.00152,67111.0,67105.0,0.07451009]
[1772997642936,0.07471803,67116.0,67106.0,0.07051737]
[1772997643161,0.00152,67113.0,67106.0,0.07051737]
[1772997643337,0.00152,67113.0,67107.0,0.07450787]
[1772997643926,0.0744993,67115.0,67107.0,0.07450787]
[1772997644117,0.00152,67113.0,67107.0,0.07450787]
[1772997646040,0.00022001,67111.0,67107.0,0.07450787]
[1772997646375,0.14608314,67120.0,67107.0,0.07450787]
[1772997646376,0.11826633,67131.0,67108.0,0.17054996]
[1772997646534,0.00152,67119.0,67110.0,0.07051737]
[1772997646737,0.07448856,67125.0,67110.0,0.17054996]
[1772997646738,0.07470857,67125.0,67110.0,0.17054996]
[1772997647072,0.00152,67118.0,67111.0,0.07051737]
[1772997647475,0.07486018,67123.0,67111.0,0.07051737]
[1772997647640,0.00152,67117.0,67111.0,0.07051737]